fUSD/lending_fUSD_20250610
["ID","MTS","AMOUNT","RATE_DAILY","PERIOD"]
[365278688,1749574243245,-490.0,0.00018082,2]
[365278690,1749574243254,-490.0,0.00018082,2]
[365278692,1749574243263,-2172.17,0.00018082,2]
[365278694,1749574243272,-490.0,0.00018082,2]
[365278696,1749574243282,-609.92,0.00018082,2]
[365278698,1749574243291,-504.07,0.00018082,2]
[365278700,1749574243300,-490.0,0.00018082,2]
[365278702,1749574243309,-490.0,0.00018082,2]
[365278704,1749574243319,-226.38511431,0.00018152,2]
[365278706,1749574243330,-365.44247854,0.00018213,2]
[365278708,1749574243340,-208.0,0.00018225,6]
[365278710,1749574243349,-225.29,0.00018228,2]
[365278712,1749574243359,-250.31,0.00018235,2]
[365278714,1749574243368,-306.65,0.00018235,2]
[365278716,1749574243377,-934.67,0.00018246,2]
[365278718,1749574243386,-574.28,0.00018246,2]
[365278720,1749574243395,-1384.88,0.00018246,2]
[365278721,1749574243404,-490.0,0.00018246,2]
[365278722,1749574243413,-490.0,0.00018246,2]
[365278723,1749574243423,-1212.07,0.00018246,2]
[365278724,1749574243432,-490.0,0.00018246,2]
[365278725,1749574243441,-490.0,0.00018246,2]
[365278726,1749574243451,-490.0,0.00018246,2]
[365278727,1749574243460,-490.0,0.00018246,2]
[365278728,1749574243469,-490.0,0.00018246,2]
[365278729,1749574243478,-490.0,0.00018246,2]
[365278730,1749574243487,-490.0,0.00018246,2]
[365278731,1749574243496,-1273.19,0.00018246,2]
[365278732,1749574243506,-1821.58,0.00018246,2]
[365278733,1749574243515,-387.22,0.00018246,2]
[365278734,1749574243525,-490.0,0.00018246,2]
[365278735,1749574243534,-561.47,0.00018246,2]
[365278736,1749574243544,-2204.71,0.00018246,2]
[365278737,1749574243554,-490.0,0.00018246,2]
[365278738,1749574243564,-490.0,0.00018246,2]
[365278739,1749574243573,-2172.17,0.00018246,2]
[365278740,1749574243583,-490.0,0.00018246,2]
[365278741,1749574243592,-504.07,0.00018246,2]
[365278742,1749574243601,-490.0,0.00018246,2]
[365278743,1749574243611,-490.0,0.00018246,2]
[365278744,1749574243620,-500.0,0.00018247,2]
[365278745,1749574243630,-534.69189065,0.00018317,2]
[365278746,1749574243639,-945.0,0.00018327,2]
[365278747,1749574243648,-3330.0,0.00018327,2]
[365278748,1749574243659,-637.0,0.00018327,2]
[365278749,1749574243668,-802.0,0.00018327,2]
[365278750,1749574243681,-1159.0,0.00018327,2]
[365278751,1749574243691,-927.0,0.00018327,2]
[365278752,1749574243701,-558.0,0.00018327,2]
[365278753,1749574243711,-2001.0,0.00018327,2]
[365278754,1749574243720,-590.0,0.00018327,2]
[365278755,1749574243731,-1275.0,0.00018327,2]
[365278756,1749574243741,-1256.0,0.00018327,2]
[365278757,1749574243750,-150.0,0.00018356,2]
[365278758,1749574243760,-150.0,0.00018356,2]
[365278759,1749574243769,-150.0,0.00018356,2]
[365278760,1749574243778,-883.0,0.00018361,2]
[365278761,1749574243787,-150.0,0.00018361,2]
[365278762,1749574243797,-4085.0,0.00018361,2]
[365278763,1749574243806,-7064.0,0.00018361,2]
[365278764,1749574243815,-150.0,0.00018361,2]
[365278765,1749574243824,-155.0,0.00018361,2]
[365278766,1749574243834,-853.0,0.00018361,2]
[365278767,1749574243843,-154.55362911,0.00018366,2]
[365278768,1749574243852,-912.54,0.00018377,2]
[365278769,1749574243861,-454.85,0.00018377,2]
[365278770,1749574243870,-973.07,0.00018377,2]
[365278771,1749574244024,-454.85,0.00018377,2]
[365278772,1749574244034,-454.85,0.00018377,2]
[365278773,1749574244043,-909.7,0.00018377,2]
[365278774,1749574244052,-454.85,0.00018377,2]
[365278775,1749574244061,-853.59,0.00018377,2]
[365278776,1749574244072,-454.85,0.00018377,2]
[365278777,1749574244081,-454.85,0.00018377,2]
[365278778,1749574244090,-918.29,0.00018377,2]
[365278779,1749574244100,-454.85,0.00018377,2]
[365278780,1749574244109,-163.33,0.00018396,2]
[365278781,1749574244118,-250.31,0.000184,2]
[365278782,1749574244129,-365.44247854,0.000184,2]
[365278783,1749574244139,-226.38511431,0.00018402,2]
[365278784,1749574244148,-934.67,0.0001841,2]
[365278785,1749574244158,-574.28,0.0001841,2]
[365278786,1749574244167,-1384.88,0.0001841,2]
[365278787,1749574244177,-249.32,0.0001841,2]
[365278788,1749574244187,-490.0,0.0001841,2]
[365278789,1749574244196,-1212.07,0.0001841,2]
[365278790,1749574244206,-490.0,0.0001841,2]
[365278791,1749574244216,-341.45,0.0001841,2]
[365278792,1749574244225,-490.0,0.0001841,2]
[365278793,1749574244235,-490.0,0.0001841,2]
[365278794,1749574244245,-490.0,0.0001841,2]
[365278795,1749574244255,-490.0,0.0001841,2]
[365278796,1749574244266,-490.0,0.0001841,2]
[365278797,1749574244276,-1273.19,0.0001841,2]
[365278798,1749574244286,-1821.58,0.0001841,2]
[365278799,1749574244296,-490.0,0.0001841,2]
[365278800,1749574244307,-561.47,0.0001841,2]
[365278801,1749574244317,-2204.71,0.0001841,2]
[365278802,1749574244327,-490.0,0.0001841,2]
[365278803,1749574244337,-490.0,0.0001841,2]
[365278804,1749574244347,-2172.17,0.0001841,2]
[365278805,1749574244357,-490.0,0.0001841,2]
[365278806,1749574244366,-504.07,0.0001841,2]
[365278807,1749574244376,-490.0,0.0001841,2]
[365278808,1749574244386,-490.0,0.0001841,2]
[365278809,1749574244396,-152.0,0.00018488,4]
[365278810,1749574244405,-931.62,0.00018574,2]
[365278811,1749574244415,-934.67,0.00018575,2]
[365278812,1749574244425,-574.28,0.00018575,2]
[365278813,1749574244435,-1384.88,0.00018575,2]
[365278814,1749574244445,-490.0,0.00018575,2]
[365278815,1749574244455,-1212.07,0.00018575,2]
[365278816,1749574244465,-278.44,0.00018575,2]
[365278817,1749574244475,-490.0,0.00018575,2]
[365278818,1749574244484,-490.0,0.00018575,2]
[365278819,1749574244494,-490.0,0.00018575,2]
[365278820,1749574244503,-490.0,0.00018575,2]
[365278821,1749574244513,-490.0,0.00018575,2]
[365278822,1749574244522,-1273.19,0.00018575,2]
[365278823,1749574244532,-1821.58,0.00018575,2]
[365278824,1749574244543,-490.0,0.00018575,2]
[365278825,1749574244553,-561.47,0.00018575,2]
[365278826,1749574244563,-2204.71,0.00018575,2]
[365278827,1749574244573,-490.0,0.00018575,2]
[365278828,1749574244582,-490.0,0.00018575,2]
[365278829,1749574244592,-2172.17,0.00018575,2]
[365278830,1749574244602,-490.0,0.00018575,2]
[365278831,1749574244612,-504.07,0.00018575,2]
[365278832,1749574244622,-490.0,0.00018575,2]
[365278833,1749574244632,-490.0,0.00018575,2]
[365278834,1749574244642,-1806.238,0.00018576,2]
[365278835,1749574244651,-365.44247854,0.00018588,2]
[365278836,1749574244661,-600.0,0.0001863,2]
[365278837,1749574244671,-226.38511431,0.00018652,2]
[365278838,1749574244684,-208.0,0.00018679,6]
[365278839,1749574244694,-197.57777096,0.000187,2]
[365278840,1749574244703,-534.69189065,0.00018713,2]
[365278841,1749574244713,-150.0,0.00018737,2]
[365278842,1749574244724,-934.67,0.00018739,2]
[365278843,1749574244734,-574.28,0.00018739,2]
[365278844,1749574244743,-1384.88,0.00018739,2]
[365278845,1749574244754,-490.0,0.00018739,2]
[365278846,1749574244764,-1212.07,0.00018739,2]
[365278847,1749574244774,-490.0,0.00018739,2]
[365278848,1749574244784,-490.0,0.00018739,2]
[365278849,1749574244794,-490.0,0.00018739,2]
[365278850,1749574244803,-490.0,0.00018739,2]
[365278851,1749574244813,-286.620001,0.00018739,2]
[365278852,1749574244822,-1273.19,0.00018739,2]
[365278853,1749574244831,-1821.58,0.00018739,2]
[365278854,1749574244841,-490.0,0.00018739,2]
[365278855,1749574244850,-561.47,0.00018739,2]
[365278856,1749574244865,-2204.71,0.00018739,2]
[365278857,1749574244875,-490.0,0.00018739,2]
[365278858,1749574244884,-490.0,0.00018739,2]
[365278859,1749574244893,-2172.17,0.00018739,2]
[365278860,1749574244903,-490.0,0.00018739,2]
[365278861,1749574244913,-504.07,0.00018739,2]
[365278862,1749574244923,-490.0,0.00018739,2]
[365278863,1749574244933,-490.0,0.00018739,2]
[365278864,1749574244943,-365.44247854,0.00018775,2]
[365278865,1749574244952,-808.22,0.00018829,2]
[365278866,1749574244963,-162.43910671,0.000189,2]
[365278867,1749574244972,-226.38511431,0.00018901,2]
[365278868,1749574244983,-934.67,0.00018904,2]
[365278869,1749574244996,-574.28,0.00018904,2]
[365278870,1749574245006,-1384.88,0.00018904,2]
[365278871,1749574245015,-490.0,0.00018904,2]
[365278872,1749574245025,-1212.07,0.00018904,2]
[365278873,1749574245035,-497.52,0.00018904,2]
[365278874,1749574245045,-490.0,0.00018904,2]
[365278875,1749574245054,-490.0,0.00018904,2]
[365278876,1749574245063,-490.0,0.00018904,2]
[365278877,1749574245073,-1273.19,0.00018904,2]
[365278878,1749574245083,-1821.58,0.00018904,2]
[365278879,1749574245093,-490.0,0.00018904,2]
[365278880,1749574245103,-561.47,0.00018904,2]
[365278881,1749574245113,-2204.71,0.00018904,2]
[365278882,1749574245123,-490.0,0.00018904,2]
[365278883,1749574245133,-490.0,0.00018904,2]
[365278884,1749574245143,-2172.17,0.00018904,2]
[365278885,1749574245154,-490.0,0.00018904,2]
[365278886,1749574245164,-504.07,0.00018904,2]
[365278887,1749574245174,-490.0,0.00018904,2]
[365278888,1749574245183,-490.0,0.00018904,2]
[365278889,1749574245193,-500.0,0.00018904,2]
[365278890,1749574245203,-365.44247854,0.00018963,2]
[365278891,1749574245212,-152.0,0.00018989,5]
[365278892,1749574245222,-500.0,0.00018999,2]
[365278893,1749574245231,-931.62,0.00018999,2]
[365278894,1749574245240,-1000.0,0.00019,19]
[365278895,1749574245249,-175246.09306878,0.00019,2]
[365278896,1749574245258,-381.15438738,0.00019,2]
[365278897,1749574245268,-250.0,0.00019,2]
[365278898,1749574245278,-934.67,0.00019068,2]
[365278899,1749574245288,-574.28,0.00019068,2]
[365278900,1749574245298,-1384.88,0.00019068,2]
[365278901,1749574245307,-490.0,0.00019068,2]
[365278902,1749574245317,-1212.07,0.00019068,2]
[365278903,1749574245326,-382.90311869,0.00019068,2]
[365278904,1749574245335,-416.91,0.00019068,2]
[365278905,1749574245345,-490.0,0.00019068,2]
[365278906,1749574245355,-1273.19,0.00019068,2]
[365278907,1749574245365,-1821.58,0.00019068,2]
[365278908,1749574245375,-490.0,0.00019068,2]
[365278909,1749574245385,-561.47,0.00019068,2]
[365278910,1749574245395,-2204.71,0.00019068,2]
[365278911,1749574245405,-490.0,0.00019068,2]
[365278912,1749574245415,-490.0,0.00019068,2]
[365278913,1749574245424,-2172.17,0.00019068,2]
[365278914,1749574245434,-490.0,0.00019068,2]
[365278915,1749574245443,-504.07,0.00019068,2]
[365278916,1749574245452,-490.0,0.00019068,2]
[365278917,1749574245462,-490.0,0.00019068,2]
[365278918,1749574245471,-1000.0,0.000191,6]
[365278919,1749574245481,-534.69189065,0.00019108,2]
[365278920,1749574245491,-208.0,0.00019133,7]
[365278921,1749574245501,-365.44247854,0.0001915,2]
[365278922,1749574245510,-500.0,0.00019177,2]
[365278923,1749574245520,-575.89,0.00019178,2]
[365278924,1749574245530,-575.89,0.00019178,2]
[365278925,1749574245539,-575.89,0.00019178,2]
[365278926,1749574245549,-575.89,0.00019178,2]
[365278927,1749574245559,-575.89,0.00019178,2]
[365278928,1749574245569,-575.89,0.00019178,2]
[365278929,1749574245578,-575.89,0.00019178,2]
[365278930,1749574245587,-575.89,0.00019178,2]
[365278931,1749574245597,-575.89,0.00019178,2]
[365278932,1749574245607,-575.89,0.00019178,2]
[365278933,1749574245616,-575.89,0.00019178,2]
[365278934,1749574245625,-575.89,0.00019178,2]
[365278935,1749574245635,-575.89,0.00019178,2]
[365278936,1749574245644,-575.89,0.00019178,2]
[365278937,1749574245654,-575.89,0.00019178,2]
[365278938,1749574245664,-575.89,0.00019178,2]
[365278939,1749574245676,-575.89,0.00019178,2]
[365278940,1749574245685,-482.34307467,0.00019178,2]
[365278941,1749574245695,-735.76990105,0.00019178,2]
[365278942,1749574245704,-735.76990105,0.00019178,2]
[365278943,1749574245714,-735.76990105,0.00019178,2]
[365278944,1749574245725,-735.76990105,0.00019178,2]
[365278945,1749574245734,-735.76990105,0.00019178,2]
[365278946,1749574245744,-735.76990105,0.00019178,2]
[365278947,1749574245754,-735.76990105,0.00019178,2]
[365278948,1749574245763,-735.76990105,0.00019178,2]
[365278949,1749574245773,-735.76990105,0.00019178,2]
[365278950,1749574245782,-735.76990105,0.00019178,2]
[365278951,1749574245791,-735.76990105,0.00019178,2]
[365278952,1749574245799,-735.76990105,0.00019178,2]
[365278953,1749574245808,-735.76990105,0.00019178,2]
[365278954,1749574245818,-735.76990105,0.00019178,2]
[365278955,1749574245827,-735.76990105,0.00019178,2]
[365278956,1749574245836,-735.76990105,0.00019178,2]
[365278957,1749574245845,-735.76990105,0.00019178,2]
[365278958,1749574245854,-735.76990105,0.00019178,2]
[365278959,1749574245864,-735.76990105,0.00019178,2]
[365278960,1749574245874,-735.76990105,0.00019178,2]
[365278961,1749574245883,-735.76990105,0.00019178,2]
[365278962,1749574245892,-735.76990105,0.00019178,2]
[365278963,1749574245902,-735.76990105,0.00019178,2]
[365278964,1749574245911,-735.76990105,0.00019178,2]
[365278965,1749574245921,-735.76990105,0.00019178,2]
[365278966,1749574245930,-735.76990105,0.00019178,2]
[365278967,1749574245940,-735.76990105,0.00019178,2]
[365278968,1749574245952,-735.76990105,0.00019178,2]
[365278969,1749574245962,-735.76990105,0.00019178,2]
[365278970,1749574245971,-735.76990105,0.00019178,2]
[365278971,1749574245980,-735.76990105,0.00019178,2]
[365278972,1749574245990,-735.76990105,0.00019178,2]
[365278973,1749574245999,-735.76990105,0.00019178,2]
[365278974,1749574246008,-735.76990105,0.00019178,2]
[365278975,1749574246018,-735.76990105,0.00019178,2]
[365278976,1749574246028,-735.76990105,0.00019178,2]
[365278977,1749574246037,-735.76990105,0.00019178,2]
[365278978,1749574246047,-735.76990105,0.00019178,2]
[365278979,1749574246057,-735.76990105,0.00019178,2]
[365278980,1749574246066,-735.76990105,0.00019178,2]
[365278982,1749574246076,-735.76990105,0.00019178,2]
[365278984,1749574246085,-735.76990105,0.00019178,2]
[365278986,1749574246094,-735.76990105,0.00019178,2]
[365278988,1749574246105,-735.76990105,0.00019178,2]
[365278990,1749574246114,-735.76990105,0.00019178,2]
[365278992,1749574246124,-735.76990105,0.00019178,2]
[365278994,1749574246133,-735.76990105,0.00019178,2]
[365278996,1749574246142,-735.76990105,0.00019178,2]
[365278998,1749574246152,-735.76990105,0.00019178,2]
[365279000,1749574246162,-735.76990105,0.00019178,2]
[365279002,1749574246171,-151.0,0.00019178,2]
[365279004,1749574246180,-216.06,0.00019178,2]
[365279006,1749574246189,-454.85,0.00019199,2]
[365279008,1749574246199,-454.85,0.00019199,2]
[365279010,1749574246208,-454.85,0.00019199,2]
[365279012,1749574246218,-1400.0,0.000192,7]
[365279014,1749574246227,-169.10759908,0.00019205,2]
[365279016,1749574246236,-816.792989,0.00019207,2]
[365279018,1749574246246,-934.67,0.00019232,2]
[365279020,1749574246256,-574.28,0.00019232,2]
[365279022,1749574246266,-1384.88,0.00019232,2]
[365279024,1749574246276,-490.0,0.00019232,2]
[365279026,1749574246285,-1212.07,0.00019232,2]
[365279028,1749574246294,-490.0,0.00019232,2]
[365279030,1749574246304,-1273.19,0.00019232,2]
[365279032,1749574246313,-1821.58,0.00019232,2]
[365279034,1749574246323,-490.0,0.00019232,2]
[365279036,1749574246332,-561.47,0.00019232,2]
[365279038,1749574246341,-575.89,0.00019232,2]
[365279040,1749574246350,-2204.71,0.00019232,2]
[365279042,1749574246360,-490.0,0.00019232,2]
[365279044,1749574246369,-490.0,0.00019232,2]
[365279046,1749574246378,-2172.17,0.00019232,2]
[365279048,1749574246388,-490.0,0.00019232,2]
[365279054,1749574246441,-504.07,0.00019232,2]
[365279056,1749574246450,-490.0,0.00019232,2]
[365279058,1749574246460,-490.0,0.00019232,2]
[365279060,1749574246469,-223.0315306,0.00019284,2]
[365279062,1749574246479,-162.380719,0.00019284,2]
[365279064,1749574246489,-602.93586421,0.00019285,2]
[365279066,1749574246500,-150.0,0.00019288,2]
[365279068,1749574246509,-150.0,0.00019288,2]
[365279070,1749574246518,-201.6667441,0.00019288,2]
[365279072,1749574246528,-200.65106076,0.00019288,2]
[365279074,1749574246537,-200.0,0.00019288,2]
[365279076,1749574246546,-150.0,0.00019288,2]
[365279078,1749574246555,-150.0,0.00019288,2]
[365279080,1749574246565,-150.0,0.00019288,2]
[365279082,1749574246575,-150.0,0.00019288,2]
[365279084,1749574246584,-150.0,0.00019288,2]
[365279086,1749574246594,-153.93623935,0.00019288,2]
[365279088,1749574246603,-250.0,0.00019288,2]
[365279090,1749574246613,-500.0,0.00019288,2]
[365279092,1749574246622,-150.0,0.00019288,2]
[365279094,1749574246631,-222.47001682,0.00019288,2]
[365279096,1749574246640,-150.0,0.00019288,2]
[365279098,1749574246650,-163.63677936,0.00019288,2]
[365279100,1749574246659,-150.0,0.00019288,2]
[365279102,1749574246668,-179.28693936,0.00019288,2]
[365279104,1749574246681,-200.0,0.00019288,2]
[365279106,1749574246692,-500.0,0.00019288,2]
[365279108,1749574246701,-1700.0,0.000193,7]
[365279110,1749574246710,-150.0,0.00019315,2]
[365279112,1749574246721,-150.0,0.00019315,2]
[365279114,1749574246731,-150.0,0.00019315,2]
[365279116,1749574246740,-150.0,0.00019315,2]
[365279118,1749574246750,-500.0,0.00019315,2]
[365279120,1749574246760,-150.0,0.00019315,2]
[365279121,1749574246770,-625.0,0.00019315,2]
[365279122,1749574246779,-365.44247854,0.00019338,2]
[365279123,1749574246789,-200.0,0.00019343,2]
[365279124,1749574246798,-200.0,0.00019343,2]
[365279125,1749574246808,-200.0,0.00019343,2]
[365279126,1749574246817,-200.0,0.00019343,2]
[365279127,1749574246826,-500.0,0.00019343,2]
[365279128,1749574246835,-500.0,0.0001937,2]
[365279129,1749574246844,-934.67,0.00019397,2]
[365279130,1749574246853,-574.28,0.00019397,2]
[365279131,1749574246863,-1384.88,0.00019397,2]
[365279132,1749574246873,-596.09081038,0.00019397,2]
[365279133,1749574246882,-1212.07,0.00019397,2]
[365279134,1749574246892,-490.0,0.00019397,2]
[365279135,1749574246901,-1273.19,0.00019397,2]
[365279136,1749574246910,-1821.58,0.00019397,2]
[365279137,1749574246920,-490.0,0.00019397,2]
[365279138,1749574246930,-561.47,0.00019397,2]
[365279139,1749574246939,-575.89,0.00019397,2]
[365279140,1749574246949,-2204.71,0.00019397,2]
[365279141,1749574246958,-490.0,0.00019397,2]
[365279142,1749574246967,-490.0,0.00019397,2]
[365279143,1749574246977,-2172.17,0.00019397,2]
[365279144,1749574246986,-524.87611852,0.00019397,2]
[365279145,1749574246994,-504.07,0.00019397,2]
[365279146,1749574247004,-490.0,0.00019397,2]
[365279147,1749574247013,-490.0,0.00019397,2]
[365279148,1749574247022,-500.0,0.00019398,2]
[365279149,1749574247032,-300.0,0.000194,7]
[365279150,1749574247042,-169.10759908,0.00019425,2]
[365279151,1749574247052,-500.0,0.00019425,2]
[365279152,1749574247062,-500.0,0.00019452,2]
[365279153,1749574247071,-12.78919175,0.0001948,2]
[365279154,1749574247255,-490.0,0.00016438,2]
[365279155,1749574247267,-490.0,0.00016438,2]
[365279156,1749574247276,-490.0,0.00016438,2]
[365279157,1749574247286,-490.0,0.00016438,2]
[365279158,1749574247295,-490.0,0.00016602,2]
[365279159,1749574247304,-490.0,0.00016602,2]
[365279160,1749574247314,-260.98316134,0.000179,2]
[365279161,1749574247323,-260.98316111,0.00017969,2]
[365279162,1749574247332,-260.98316111,0.00018038,2]
[365279163,1749574247341,-260.98316111,0.00018107,2]
[365279164,1749574247351,-260.98316111,0.00018176,2]
[365279165,1749574247361,-260.98316111,0.00018245,2]
[365279166,1749574247370,-260.98316111,0.00018314,2]
[365279167,1749574247380,-150.0,0.00018361,2]
[365279168,1749574247389,-260.98316111,0.00018383,2]
[365279169,1749574247398,-487.21080825,0.0001948,2]
[365279170,1749574247408,-152.0,0.0001949,6]
[365279171,1749574247417,-931.62,0.00019499,2]
[365279172,1749574247427,-3897.55390265,0.000195,2]
[365279173,1749574247611,-3982.13496997,0.000195,2]
[365279174,1749574247780,-490.0,0.00016438,2]
[365279175,1749574247790,-490.0,0.00016438,2]
[365279176,1749574247799,-84.4246,0.00016438,2]
[365279177,1749574247811,-405.5754,0.00016438,2]
[365279178,1749574247820,-448.73011776,0.00016602,2]
[365279179,1749574247829,-454.85,0.00017555,2]
[365279180,1749574247838,-129.19245926,0.00018452,2]
[365279181,1749574269502,1333.0,0.00023822,120]
[365279184,1749574707188,298.04,0.00013699,2]
[365279185,1749574844390,1000.0,0.00015837,2]
[365279186,1749574889505,397.26,0.00019205,30]
[365279187,1749574916991,227.27,0.00024658,120]
[365279188,1749574945547,150.0,0.00015868,7]
[365279189,1749574950853,150.0,0.00023732,120]
[365279190,1749574966492,156.42,0.00015868,2]
[365279191,1749575051169,1333.0,0.0002415,120]
[365279192,1749575172395,771.71,0.00013905,2]
[365279193,1749575187702,666.0,0.0001579,2]
[365279194,1749575226294,1641.0,0.00024658,120]
[365279195,1749575239351,-1200.0,0.00016146,2]
[365279196,1749575239382,-6296.28823905,0.00016147,2]
[365279197,1749575250760,150.0,0.00020322,120]
[365279198,1749575299063,263.39593771,0.00015038,2]
[365279199,1749575350160,-4381.42176095,0.00016147,2]
[365279200,1749575350183,-500.0,0.00016164,2]
[365279201,1749575350206,-500.0,0.00016164,2]
[365279202,1749575350229,-771.71,0.00016169,2]
[365279203,1749575350252,-250.0,0.00016275,2]
[365279204,1749575350273,-592.47130939,0.00016338,2]
[365279205,1749575350293,-500.0,0.00016338,2]
[365279206,1749575350314,-12703.0064,0.00016338,2]
[365279207,1749575350336,-169.5121,0.00016338,2]
[365279208,1749575350358,-250.0,0.00016388,2]
[365279209,1749575351498,206.0,0.00015587,2]
[365279210,1749575351745,397.44721122,0.00015926,2]
[365279211,1749575351766,763.00996715,0.00015926,2]
[365279212,1749575351788,174.02282163,0.00015926,2]
[365279213,1749575358113,-206.0,0.00016035,2]
[365279214,1749575358137,-626.93,0.00016428,3]
[365279215,1749575358159,-505.0,0.00016436,2]
[365279216,1749575358182,-500.0,0.00016437,2]
[365279217,1749575358203,-500.0,0.00016437,2]
[365279218,1749575358224,-503.11151744,0.00016437,2]
[365279219,1749575358248,-163.38966056,0.00016437,2]
[365279220,1749575374087,-336.61033944,0.00016437,2]
[365279221,1749575374111,-500.0,0.00016437,2]
[365279222,1749575374133,-123.78966056,0.00016437,2]
[365279223,1749575418972,961.52509598,0.00016041,2]
[365279224,1749575418995,38.47490402,0.00016041,2]
[365279229,1749575431943,-500.0,0.00016164,2]
[365279230,1749575431952,-300.0,0.00016436,2]
[365279231,1749575431964,-1200.0,0.00016436,2]
[365279232,1749575431974,-376.21033944,0.00016437,2]
[365279233,1749575431984,-500.0,0.00016437,2]
[365279234,1749575431993,-192.59051966,0.00016437,2]
[365279235,1749575432005,-307.40948034,0.00016437,2]
[365279236,1749575432015,-31.39739942,0.00016437,2]
[365279237,1749575432049,-468.60260058,0.00016437,2]
[365279238,1749575432058,-274.15938302,0.00016437,2]
[365279239,1749575432068,-474.8864926,0.00016437,2]
[365279240,1749575432080,-257.59815901,0.00016437,2]
[365279241,1749575432090,-420.12562415,0.00016437,2]
[365279242,1749575432100,-163.87627696,0.00016437,2]
[365279243,1749575432110,-157.79173602,0.00016437,2]
[365279244,1749575432120,-153.37907134,0.00016437,2]
[365279245,1749575432128,-500.000001,0.00016438,2]
[365279246,1749575432138,-490.0,0.00016438,2]
[365279247,1749575432147,-405.97752402,0.00016438,2]
[365279248,1749575432161,-28.98870675,0.00016438,2]
[365279249,1749575432171,-490.0,0.00016438,2]
[365279250,1749575432180,-490.0,0.00016438,2]
[365279251,1749575432189,-490.0,0.00016438,2]
[365279252,1749575432199,-490.0,0.00016438,2]
[365279253,1749575432209,-490.0,0.00016438,2]
[365279254,1749575432219,-457.85796981,0.00016438,2]
[365279255,1749575432228,-460.0,0.00016438,2]
[365279256,1749575432238,-490.0,0.00016438,2]
[365279257,1749575432247,-490.0,0.00016438,2]
[365279258,1749575432256,-490.0,0.00016438,2]
[365279259,1749575432265,-490.0,0.00016438,2]
[365279260,1749575432274,-477.91858951,0.00016438,2]
[365279262,1749575432284,-490.0,0.00016438,2]
[365279264,1749575432293,-480.0,0.00016438,2]
[365279266,1749575432302,-490.0,0.00016438,2]
[365279268,1749575432311,-490.0,0.00016438,2]
[365279270,1749575432321,-490.0,0.00016438,2]
[365279272,1749575432330,-490.0,0.00016438,2]
[365279274,1749575432339,-554.6,0.00016438,2]
[365279276,1749575432348,-480.0,0.00016438,2]
[365279278,1749575432358,-490.0,0.00016438,2]
[365279280,1749575432367,-490.0,0.00016438,2]
[365279282,1749575432376,-486.74094442,0.00016438,2]
[365279284,1749575432385,-490.0,0.00016438,2]
[365279286,1749575432395,-434.08496462,0.00016438,2]
[365279288,1749575432407,-55.91503538,0.00016438,2]
[365279290,1749575432416,-460.0,0.00016438,2]
[365279292,1749575432425,-490.0,0.00016438,2]
[365279294,1749575432435,-314.35052807,0.00016438,2]
[365279296,1749575432444,-490.0,0.00016438,2]
[365279298,1749575432455,-460.0,0.00016438,2]
[365279300,1749575432464,-490.0,0.00016438,2]
[365279302,1749575432473,-490.0,0.00016438,2]